bitfinex/quotes_ETHUSD_20251118
["timestamp","ask_amount","ask_price","bid_price","bid_amount"]
[1763467983695,1.063,3056.8,3056.0,0.4958]
[1763467984933,0.28,3056.7,3056.0,0.4958]
[1763467985430,0.404704,3057.2,3056.6,0.4852]
[1763467985632,1.343,3057.1,3056.7,0.4852]
[1763467986630,1.343,3057.1,3056.3,0.4674]
[1763467987332,0.03184148,3057.0,3056.3,0.4674]
[1763467988673,0.4897,3057.9,3056.9,0.4842]
[1763467988870,1.342,3057.7,3057.0,0.4842]
[1763467989043,0.43734548,3057.6,3056.3,0.4674]
[1763467989363,0.92704548,3057.6,3056.3,0.4674]
[1763467989768,0.43734548,3057.6,3056.3,0.4674]
[1763467989975,0.43734548,3057.6,3056.0,0.001]
[1763467989976,0.6841,3056.4,3056.0,0.001]
[1763467990186,0.6841,3056.4,3054.2,0.65940714]
[1763467990187,0.4958,3055.5,3053.1,0.1726]
[1763467990478,3.29344249,3055.4,3053.3,0.4674]
[1763467990770,3.29344249,3055.4,3053.1,0.1726]
[1763467990771,0.405504,3055.2,3053.1,0.1726]
[1763467990932,0.405504,3055.0,3053.1,0.1726]
[1763467991138,0.405504,3054.8,3053.1,0.64]
[1763467991338,0.405504,3054.6,3053.1,0.64]
[1763467991534,0.405504,3054.4,3053.2,0.4674]
[1763467992071,1.343,3054.3,3053.2,0.4674]
[1763467992271,1.343,3054.3,3053.1,0.1726]
[1763467992272,0.405504,3054.1,3053.1,0.1726]
[1763467992432,0.405504,3054.1,3053.2,0.4674]
[1763467993273,0.405504,3054.5,3053.2,0.4674]
[1763467993482,0.405504,3054.3,3053.2,0.4674]
[1763467994466,0.405504,3054.1,3053.1,0.1736]
[1763467994779,0.03184148,3054.0,3053.1,0.1736]
[1763467995077,0.281,3053.9,3053.2,0.4674]
[1763467995440,0.281,3053.9,3053.1,0.1736]
[1763467995441,0.4679,3053.9,3053.1,0.1736]
[1763467996176,0.405504,3053.7,3053.1,0.001]
[1763467996475,0.405504,3053.5,3053.1,0.001]
[1763467996652,0.405504,3053.3,3053.1,0.001]
[1763467996841,0.43734548,3053.2,3053.1,0.001]
[1763467997481,1.40584548,3053.2,3053.1,0.001]
[1763467997842,1.374004,3053.2,3053.1,0.001]
[1763467998471,1.40584548,3053.2,3053.1,0.001]
[1763467998658,2.74984548,3053.2,3053.1,0.001]
[1763467998863,4.71983812,3053.2,3053.1,0.001]
[1763467999474,3.65683812,3053.2,3053.1,0.001]
[1763467999894,3.95646061,3053.2,3053.1,0.001]
[1763468000095,2.61246061,3053.2,3053.1,0.001]
[1763468000270,2.59383812,3053.2,3053.1,0.001]
[1763468000475,2.31283812,3053.2,3053.1,0.001]
[1763468000781,0.281,3053.2,3053.1,0.001]
[1763468001211,0.4896,3053.6,3053.1,0.001]
[1763468001378,0.281,3053.5,3053.1,0.001]
[1763468001571,0.03184148,3053.4,3053.1,0.001]
[1763468001902,0.281,3053.5,3053.1,0.001]
[1763468002105,0.31284148,3053.4,3053.1,0.001]
[1763468002307,0.281,3053.3,3053.1,0.001]
[1763468002601,0.405504,3053.2,3053.1,0.001]
[1763468002801,0.4821,3053.8,3053.1,0.001]
[1763468003003,0.31284148,3053.7,3053.1,0.001]
[1763468003211,0.405504,3053.6,3053.1,0.001]
[1763468003381,0.876604,3053.2,3053.1,0.001]
[1763468003615,1.157604,3053.2,3053.1,0.001]
[1763468004005,0.281,3053.2,3053.1,0.1976]
[1763468004525,0.1869,3053.9,3053.1,0.1976]
[1763468004672,0.1869,3054.1,3053.1,1.166]
[1763468004875,0.281,3054.0,3053.2,0.4939]
[1763468005095,0.281,3054.0,3053.1,0.1976]
[1763468005283,0.03184148,3053.9,3053.1,0.1976]
[1763468005499,0.405504,3053.8,3053.1,0.001]
[1763468005673,0.405504,3053.9,3053.1,0.1976]
[1763468006171,0.4821,3054.0,3053.1,0.1976]
[1763468006374,0.31284148,3053.9,3053.1,0.1976]
[1763468006771,0.405504,3053.8,3053.1,0.1976]
[1763468006975,0.4711,3053.2,3053.1,0.001]
[1763468007175,1.638904,3053.2,3053.1,0.001]
[1763468008229,2.702904,3053.2,3053.1,0.001]
[1763468008718,1.469504,3053.2,3053.1,0.001]
[1763468008919,0.405504,3053.2,3053.1,0.001]
[1763468009087,1.345,3053.2,3053.1,0.001]
[1763468009624,1.345,3053.2,3053.1,0.6721]
[1763468011224,1.345,3053.2,3053.1,1.166]
[1763468011538,1.345,3053.2,3053.1,0.6721]
[1763468011890,1.064,3054.6,3053.1,0.6721]
[1763468011891,1.71976999,3055.6,3053.1,1.166]
[1763468012113,1.345,3054.2,3053.2,0.4939]
[1763468012335,1.345,3054.1,3053.2,0.4939]
[1763468012692,1.345,3054.1,3053.1,0.1976]
[1763468012693,0.03184148,3054.0,3053.1,0.1976]
[1763468012999,1.345,3054.1,3053.2,0.4939]
[1763468013187,0.405504,3053.9,3053.2,0.4939]
[1763468013388,0.03184148,3053.8,3053.2,0.4939]
[1763468013640,0.405504,3053.9,3053.1,0.1976]
[1763468013984,0.887604,3053.9,3053.1,0.001]
[1763468014186,0.03184148,3053.8,3053.1,0.001]
[1763468014400,0.405504,3053.6,3053.1,0.001]
[1763468014913,1.345,3053.7,3053.1,0.001]
[1763468014914,0.405504,3053.4,3053.1,0.001]
[1763468015113,1.345,3053.7,3053.1,0.1976]
[1763468015114,0.405504,3053.6,3053.1,0.1976]
[1763468016618,0.875704,3053.6,3053.1,0.001]
[1763468016816,0.405504,3053.5,3053.1,0.001]
[1763468018325,0.03184148,3053.4,3053.1,0.001]
[1763468018538,0.405504,3053.5,3053.4,0.4792]
[1763468018715,1.345,3053.5,3053.4,0.4792]
[1763468019714,1.345,3053.5,3053.4,0.9744]
[1763468020168,1.64857944,3053.5,3053.4,0.9744]
[1763468021233,1.64857944,3053.5,3053.4,0.4792]
[1763468021462,1.64857944,3053.5,3053.1,0.1917]
[1763468021463,1.345,3053.5,3053.1,0.1917]
[1763468021770,1.51888666,3054.3,3053.4,0.4792]
[1763468021940,2.38016466,3054.2,3053.4,0.4792]
[1763468022273,1.00332318,3054.1,3053.4,0.4792]
[1763468022488,1.00332318,3054.0,3053.4,0.4792]
[1763468022687,1.064,3053.9,3053.5,0.4952]
[1763468022850,0.281,3053.8,3053.5,0.4952]
[1763468023486,0.281,3053.8,3053.7,0.4792]
[1763468023663,0.281,3053.8,3053.7,0.9744]
[1763468023858,1.345,3053.8,3053.7,0.9744]
[1763468024168,0.405504,3054.7,3053.7,0.9744]
[1763468024371,2.34845615,3054.6,3053.8,0.4952]
[1763468024567,1.00345615,3054.5,3053.8,0.4952]
[1763468024877,0.30365467,3054.4,3053.8,0.4952]
[1763468025086,0.30365467,3054.3,3053.8,0.4952]
[1763468025252,0.30365467,3054.2,3053.8,0.4952]
[1763468025458,1.345,3054.1,3053.8,0.4952]
[1763468025680,0.03184148,3054.0,3053.5,0.4952]
[1763468025992,0.50204148,3054.0,3053.2,0.01]
[1763468026276,0.90035211,3053.9,3053.2,0.01]
[1763468026476,0.405504,3053.7,3053.2,0.01]
[1763468026655,0.31284148,3053.6,3053.2,0.01]
[1763468026859,0.281,3053.6,3053.2,0.01]
[1763468027977,0.405504,3054.4,3053.5,0.4792]
[1763468028146,2.55552063,3054.3,3053.5,0.4792]
[1763468028348,0.405504,3054.1,3053.5,0.4792]
[1763468028542,0.30352799,3054.0,3053.5,0.4792]
[1763468028777,1.64852799,3053.9,3053.5,0.4792]
[1763468028981,1.345,3053.9,3053.5,0.4792]
[1763468029170,1.345,3053.9,3053.5,0.9744]
[1763468029368,0.405504,3054.2,3053.5,0.9744]
[1763468029573,1.64865202,3054.1,3053.5,0.9744]
[1763468029771,1.345,3054.1,3053.5,0.4792]
[1763468029958,1.345,3054.1,3053.2,0.01]
[1763468029959,0.4718,3053.6,3053.2,0.01]
[1763468030288,0.026,3053.3,3053.2,0.01]
[1763468030582,1.27690133,3053.3,3053.2,0.01]
[1763468030757,1.27690133,3053.3,3053.1,0.001]
[1763468030758,3.93439797,3053.3,3053.1,0.001]
[1763468030959,4.10118856,3053.2,3053.1,0.001]
[1763468031184,2.95467524,3053.2,3052.5,0.001]
[1763468031349,1.068604,3052.9,3052.5,0.001]
[1763468031551,1.57064548,3052.9,3052.5,0.001]
[1763468032068,2.26993077,3052.9,3052.5,0.001]
[1763468032274,1.57064548,3052.9,3052.5,0.001]
[1763468032792,1.349604,3052.9,3052.5,0.001]
[1763468033197,0.686504,3052.9,3052.5,0.001]
[1763468033493,0.405504,3052.9,3052.5,0.001]
[1763468033678,0.686504,3052.9,3052.5,0.001]
[1763468033867,1.158304,3052.9,3052.5,0.001]
[1763468034065,0.71834548,3052.9,3052.5,0.001]
[1763468034297,1.344206,3053.7,3052.5,0.001]
[1763468034462,0.97977019,3053.6,3052.8,0.4802]
[1763468034857,0.281,3053.6,3052.8,0.4802]
[1763468035058,0.405504,3053.5,3052.8,0.4802]
[1763468035582,0.405504,3053.5,3052.8,0.001]
[1763468035896,0.405504,3053.3,3052.8,0.001]
[1763468036066,0.31284148,3053.2,3052.8,0.001]
[1763468036589,0.405504,3053.3,3052.8,0.001]
[1763468036793,0.281,3053.1,3052.8,0.001]
[1763468036960,0.281,3053.0,3052.8,0.001]
[1763468037357,0.03184148,3052.9,3052.8,0.001]
[1763468037570,0.31284148,3052.9,3052.8,0.001]
[1763468037977,0.281,3052.9,3052.8,0.4802]
[1763468038178,0.4702,3053.8,3052.8,0.9754]
[1763468038473,1.78234548,3053.7,3052.8,0.001]
[1763468038679,0.405504,3053.5,3052.8,0.001]
[1763468038881,0.03184148,3053.4,3052.8,0.001]
[1763468039282,0.1913,3052.9,3052.8,0.001]
[1763468039499,0.281,3052.9,3052.8,0.001]
[1763468039979,0.405504,3053.3,3052.8,0.4802]
[1763468040303,0.002,3054.3,3052.8,0.4802]
[1763468040304,0.70050587,3053.9,3053.2,0.6699]
[1763468040511,0.70050587,3053.9,3052.8,0.4962]
[1763468040512,1.37684148,3053.8,3052.8,0.001]
[1763468040817,0.50204148,3053.8,3052.8,0.001]
[1763468041018,1.750504,3053.7,3052.8,0.001]
[1763468041170,0.03184148,3053.6,3052.8,0.001]
[1763468041771,0.405504,3053.4,3052.8,0.001]
[1763468042076,0.405504,3053.2,3052.8,0.001]
[1763468042418,1.068604,3052.9,3052.8,0.001]
[1763468042576,1.349604,3052.9,3052.8,0.001]
[1763468042770,0.686504,3052.9,3052.8,0.001]
[1763468042971,1.750504,3052.9,3052.8,0.001]
[1763468043371,2.222304,3052.9,3052.8,0.001]
[1763468043571,1.345,3052.9,3052.8,0.4802]
[1763468043999,1.345,3052.9,3052.8,0.001]
[1763468045356,2.692504,3052.9,3052.8,0.001]
[1763468045659,3.59949664,3052.9,3052.8,0.001]
[1763468045873,1.31249664,3052.8,3052.7,0.001]
[1763468046021,2.83478724,3052.8,3052.5,0.001]
[1763468046336,0.405504,3052.4,3050.5,0.489]
[1763468046536,0.405504,3052.2,3050.5,0.6801]
[1763468046748,0.405504,3052.0,3050.5,0.6801]
[1763468046951,0.405504,3051.8,3050.5,0.1911]
[1763468047127,0.405504,3051.8,3050.6,0.57983496]
[1763468047315,0.281,3051.7,3050.6,0.57983496]
[1763468047515,0.58381008,3051.7,3050.6,0.57983496]
[1763468048116,0.405504,3051.5,3050.6,0.09083496]
[1763468048458,0.405504,3051.5,3050.6,0.57983496]
[1763468048653,0.405504,3051.3,3050.6,0.09083496]
[1763468048819,0.405504,3051.1,3050.6,0.09083496]
[1763468049221,0.405504,3051.1,3050.6,0.57983496]
[1763468049518,0.03184148,3051.8,3050.6,0.57983496]
[1763468049754,1.750504,3051.7,3050.6,0.57983496]
[1763468049954,0.6427,3051.9,3050.6,0.57983496]
[1763468050124,1.064,3051.6,3050.6,0.57983496]
[1763468050327,0.1908,3051.9,3050.6,0.57983496]
[1763468050631,0.1908,3052.2,3050.6,0.57983496]
[1763468050831,1.346,3052.1,3050.6,0.57983496]
[1763468051022,1.064,3052.1,3050.6,0.57983496]
[1763468051231,0.282,3052.0,3050.6,0.57983496]
[1763468051952,0.687504,3052.0,3050.6,0.57983496]
[1763468052352,0.1908,3052.7,3051.9,0.5581]
[1763468052532,1.346,3052.6,3051.9,0.5581]
[1763468052735,0.1908,3052.7,3051.9,0.5581]
[1763468052970,1.346,3052.6,3051.9,0.5581]
[1763468053871,0.405504,3052.5,3051.9,0.5581]
[1763468054171,0.4519,3052.2,3051.4,0.1911]
[1763468054374,1.346,3052.1,3051.4,0.1911]
[1763468054666,0.31384148,3052.0,3051.4,0.1911]
[1763468054872,0.282,3052.0,3051.4,0.1911]
[1763468055072,0.03184148,3051.9,3051.4,0.1911]
[1763468055237,0.03184148,3051.9,3051.0,0.1911]
[1763468055441,0.48374148,3051.9,3050.7,0.489]
[1763468055680,0.48374148,3051.9,3050.6,0.09083496]
[1763468056044,0.405504,3051.8,3050.6,0.09083496]
[1763468056573,0.405504,3051.6,3050.6,0.09083496]
[1763468056783,0.1908,3050.7,3050.6,0.09083496]
[1763468057079,0.282,3050.7,3050.6,0.09083496]
[1763468057238,0.282,3050.7,3050.6,1.05753496]
[1763468057438,1.347,3050.7,3050.6,1.05753496]
[1763468057686,1.347,3050.7,3050.6,0.56853496]
[1763468057890,1.347,3050.7,3050.6,0.09083496]
[1763468058753,2.237104,3050.7,3050.6,0.09083496]
[1763468058953,0.4519,3051.0,3050.6,0.09083496]
[1763468059155,0.7666,3050.7,3050.6,0.09083496]
[1763468059359,1.172104,3050.7,3050.6,0.09083496]
[1763468059581,1.65584548,3050.7,3050.6,0.09083496]
[1763468060081,2.237104,3050.7,3050.6,0.09083496]
[1763468060255,3.59729664,3050.7,3050.6,0.09083496]
[1763468060457,2.25029664,3050.7,3050.6,0.09083496]
[1763468060661,3.59729664,3050.7,3050.6,0.09083496]
[1763468061355,2.25029664,3050.7,3050.6,0.09083496]
[1763468061748,3.14409664,3050.7,3050.6,0.09083496]
[1763468062079,1.955104,3050.7,3050.6,0.09083496]
[1763468062282,0.1258,3049.7,3047.4,2.35262411]
[1763468062453,0.1258,3049.7,3045.9,0.1839]
[1763468062454,1.31249664,3048.2,3047.1,0.1839]
[1763468062663,0.03184148,3048.1,3047.1,0.1839]
[1763468062847,1.754504,3048.0,3047.2,0.4922]
[1763468063045,1.754504,3048.0,3047.1,0.1839]
[1763468063046,1.349,3048.0,3047.1,0.6761]
[1763468063477,1.349,3047.9,3047.2,0.4922]
[1763468064300,1.46854148,3047.8,3047.1,0.1839]
[1763468064504,0.03184148,3047.7,3047.2,0.4922]
[1763468064668,0.0877,3048.4,3047.2,0.4922]
[1763468064868,1.754504,3048.3,3047.2,0.4922]
[1763468065300,0.405504,3048.1,3047.1,0.1839]
[1763468065502,0.03184148,3048.3,3047.1,0.6761]
[1763468065503,0.405504,3047.9,3047.1,0.6761]
[1763468065887,1.20829264,3048.4,3047.1,0.6761]
[1763468065888,1.065,3047.8,3047.2,0.4922]
[1763468066063,0.284,3047.7,3047.2,0.4922]
[1763468066269,0.31584148,3047.7,3047.2,0.4922]
[1763468066470,0.90699264,3049.4,3047.2,0.4922]
[1763468066670,1.38084148,3049.0,3047.2,0.4922]
[1763468066866,1.065,3048.9,3047.2,0.52501701]
[1763468067067,0.284,3048.8,3047.2,0.4922]
[1763468067280,1.065,3048.7,3047.3,0.03281593]
[1763468067508,0.31584148,3048.6,3047.4,0.4922]
[1763468067809,0.03184148,3049.6,3048.6,0.1839]
[1763468068101,1.065,3049.5,3048.6,0.1839]
[1763468068288,0.284,3049.4,3048.7,0.4922]
[1763468068601,0.03184148,3049.3,3048.7,0.4922]
[1763468068803,0.03184148,3049.3,3048.6,0.1839]
[1763468069177,0.31584148,3049.4,3048.6,0.1839]
[1763468069373,0.405504,3049.3,3048.4,0.1839]
[1763468069574,0.03184148,3049.2,3048.4,0.1839]
[1763468070195,0.1258,3049.7,3048.4,0.6761]
[1763468070366,1.38084148,3049.6,3048.4,0.6761]
[1763468070565,0.1258,3049.7,3048.4,0.6761]
[1763468070566,0.1258,3049.7,3048.5,0.4922]
[1763468070804,1.38084148,3049.6,3048.5,0.4922]
[1763468071100,0.03184148,3049.6,3048.5,0.4922]
[1763468071272,1.349,3049.5,3048.5,0.4922]
[1763468071600,0.03184148,3049.4,3048.5,0.4922]
[1763468073401,0.405504,3049.3,3048.5,0.4922]
[1763468073604,0.1258,3049.9,3048.5,0.4922]
[1763468073770,0.405504,3049.8,3048.5,0.4922]
[1763468074106,0.405504,3049.6,3048.5,0.4922]
[1763468074403,1.349,3049.7,3048.5,0.4922]
[1763468074766,0.43734548,3049.6,3048.5,0.4922]
[1763468075404,0.619104,3049.6,3048.5,0.4922]
[1763468075604,0.405504,3049.6,3048.5,0.4922]
[1763468075775,1.349,3049.5,3048.5,0.4922]
[1763468075976,0.03184148,3049.4,3048.5,0.4922]
[1763468076798,1.065,3049.3,3048.5,0.4922]
[1763468076974,0.284,3049.2,3048.5,0.4922]
[1763468077504,0.284,3049.2,3049.1,0.4743]
[1763468077694,1.065,3049.2,3049.1,0.4743]
[1763468077872,1.065,3049.2,3049.1,0.9269]
[1763468078820,0.002,3050.7,3049.1,0.9269]
[1763468079025,0.284,3050.6,3049.2,0.4526]
[1763468079190,0.284,3050.6,3049.3,0.18338926]
[1763468079690,0.002,3050.7,3049.4,0.4526]
[1763468079893,0.284,3050.6,3049.4,0.4526]
[1763468080293,0.284,3050.6,3050.5,0.1902]
[1763468080904,0.284,3050.6,3050.5,1.1171]
[1763468081103,0.002,3050.7,3050.5,1.1171]
[1763468081299,0.002,3050.7,3050.6,0.9269]
[1763468082009,0.286,3050.7,3050.6,0.9269]
[1763468082395,0.286,3050.7,3050.5,0.1902]
[1763468082596,0.03104148,3050.6,3050.2,0.1902]
[1763468083637,0.03104148,3050.6,3049.9,0.1902]
[1763468084140,0.405504,3050.5,3049.6,0.4526]
[1763468084305,0.03104148,3050.4,3049.6,0.4526]
[1763468084629,0.405504,3050.3,3049.5,0.1902]
[1763468084843,0.405504,3050.3,3049.2,0.1902]
[1763468084991,0.24464148,3050.3,3049.2,0.1902]
[1763468085191,0.405504,3050.2,3049.2,0.1902]
[1763468085701,0.31504148,3050.1,3049.2,0.6428]
[1763468086830,0.284,3050.1,3049.2,0.6428]
[1763468087315,0.43654548,3050.0,3049.2,0.6428]
[1763468087511,0.405504,3050.0,3049.2,0.6428]
[1763468087742,0.1258,3049.9,3049.2,0.6428]
[1763468087947,0.1258,3049.9,3049.2,0.1902]
[1763468088244,1.09604148,3049.8,3049.2,0.1902]
[1763468088449,1.09604148,3049.8,3048.5,0.001]
[1763468088450,0.405504,3049.7,3048.5,0.001]
[1763468088630,0.1258,3049.9,3048.5,0.4536]
[1763468088839,1.349,3049.6,3048.5,0.4536]
[1763468089012,0.03104148,3049.5,3048.5,0.4536]
[1763468089837,0.405504,3049.5,3048.5,0.4536]
[1763468090845,0.2136,3048.6,3048.5,0.001]
[1763468091061,0.903104,3048.6,3048.5,0.001]
[1763468091260,1.41781219,3048.6,3048.5,0.001]
[1763468091641,1.116704,3048.6,3048.5,0.001]
[1763468091826,0.832704,3048.6,3048.5,0.001]
[1763468092009,2.181704,3048.6,3048.5,0.001]
[1763468092210,1.41767533,3048.6,3048.5,0.001]
[1763468092647,2.11088375,3048.6,3048.5,0.001]
[1763468092849,2.14192523,3048.6,3048.5,0.001]
[1763468093347,1.44871681,3048.6,3048.5,0.001]
[1763468093544,1.16471681,3048.6,3048.5,0.001]
[1763468093864,1.41767533,3048.6,3048.5,0.001]
[1763468094019,1.16471681,3048.6,3048.5,0.001]
[1763468094349,1.41767533,3048.6,3048.5,0.001]
[1763468094516,1.13367533,3048.6,3048.5,0.001]
[1763468094712,1.41767533,3048.6,3048.5,0.001]
[1763468094917,0.92007533,3048.6,3048.5,0.001]
[1763468095117,0.284,3048.6,3048.5,0.001]
[1763468095419,0.4976,3048.6,3048.5,0.001]
[1763468096339,0.284,3048.6,3048.5,0.001]
[1763468096540,0.31504148,3048.6,3048.5,0.001]
[1763468097050,0.903104,3048.6,3048.5,0.001]
[1763468097356,0.72054548,3048.6,3048.5,0.001]
[1763468098039,1.78654548,3048.6,3048.5,0.001]
[1763468098755,0.93414548,3048.6,3048.5,0.001]
[1763468098940,0.03104148,3048.6,3048.5,0.001]
[1763468099141,1.35,3048.6,3048.5,0.001]
[1763468099348,1.755504,3048.6,3048.5,0.001]
[1763468099555,1.066,3048.6,3048.5,0.001]
[1763468099860,1.35,3048.6,3048.5,0.001]
[1763468100531,1.969104,3048.6,3048.5,0.001]
[1763468100730,10.27571538,3052.7,3048.5,0.001]
[1763468100731,0.36906638,3049.2,3048.5,0.001]
[1763468100932,1.066,3048.6,3048.5,0.001]
[1763468101134,0.15684148,3049.9,3048.5,0.001]
[1763468101335,1.066,3049.8,3048.5,0.9279]
[1763468101569,0.03104148,3049.7,3048.5,0.9279]
[1763468101767,1.2796,3049.8,3048.6,0.4526]
[1763468101956,0.03104148,3049.7,3048.6,0.4526]
[1763468102167,0.24464148,3049.7,3048.5,0.001]
[1763468102484,0.284,3049.6,3048.5,0.001]
[1763468102682,0.03104148,3049.5,3048.5,0.001]
[1763468102836,0.54601227,3049.5,3048.5,0.001]
[1763468103033,0.30137079,3049.5,3048.6,0.4526]
[1763468103237,0.2136,3050.5,3049.4,0.6645]
[1763468103437,1.35,3050.4,3049.5,0.4743]
[1763468104033,0.284,3050.3,3049.5,0.9269]
[1763468104237,0.002,3050.6,3049.5,0.9269]
[1763468104238,1.066,3050.2,3049.5,0.9269]
[1763468104439,0.002,3050.6,3050.1,0.6645]
[1763468104874,1.35,3050.5,3050.2,0.4526]
[1763468105485,0.002,3050.6,3050.4,0.4743]
[1763468105641,1.35,3050.5,3050.2,0.4526]
[1763468105840,0.002,3050.6,3050.4,0.4743]
[1763468106054,0.002,3050.6,3050.5,0.4743]
[1763468106455,0.286,3050.6,3050.5,0.9374]
[1763468106656,0.002,3050.6,3050.5,0.9374]
[1763468107183,8.17905343,3053.0,3050.5,0.9374]
[1763468107345,0.2136,3052.8,3051.0,0.4903]
[1763468107542,0.286,3051.1,3051.0,0.4903]
[1763468107879,0.286,3051.1,3051.0,0.9534]
[1763468108179,1.351,3051.1,3051.0,0.9534]
[1763468108367,0.286,3051.1,3051.0,0.9534]
[1763468108572,1.351,3051.1,3051.0,0.9534]
[1763468108959,0.002,3051.1,3051.0,0.9534]
[1763468109176,1.351,3051.1,3051.0,0.9534]
[1763468109881,1.067,3051.1,3051.0,0.9534]
[1763468110085,1.351,3051.1,3051.0,0.9534]
[1763468111252,0.002,3051.1,3051.0,0.9534]
[1763468111472,1.351,3051.1,3051.0,0.9534]
[1763468111754,0.286,3051.1,3051.0,0.9534]
[1763468111954,0.002,3051.1,3051.0,0.9534]
[1763468112286,1.292,3051.1,3051.0,0.9534]
[1763468112459,0.286,3051.1,3051.0,0.9534]
[1763468112649,0.002,3051.1,3051.0,0.9534]
[1763468112851,0.1258,3053.1,3051.0,0.9534]
[1763468113056,0.1258,3053.1,3051.1,0.6538]
[1763468113057,0.284,3053.0,3051.1,0.6538]
[1763468113277,0.284,3053.0,3051.2,0.4631]
[1763468114356,0.284,3052.9,3051.2,0.4631]
[1763468114673,0.002,3053.6,3051.3,0.03277291]
[1763468114875,0.284,3053.5,3051.4,0.4631]
[1763468115063,0.002,3053.6,3051.4,0.4631]
[1763468115262,0.283,3053.5,3051.4,0.4631]
[1763468115886,0.002,3053.6,3051.4,0.4631]
[1763468115887,0.03104148,3053.4,3051.4,0.4631]
[1763468116089,0.283,3053.3,3051.4,0.4631]
[1763468116289,0.03104148,3053.2,3051.4,0.4631]
[1763468116591,0.283,3053.3,3051.4,0.4631]
[1763468116794,0.002,3053.6,3051.4,0.4631]
[1763468116962,0.283,3053.2,3051.4,0.4631]
[1763468117572,0.03104148,3053.1,3051.4,0.4631]
[1763468118057,1.065,3053.0,3051.4,0.4631]
[1763468118262,0.03104148,3052.9,3051.4,0.4631]
[1763468118582,1.348,3052.8,3051.4,0.4631]
[1763468120822,1.37904148,3052.8,3051.4,0.4631]
[1763468120988,1.348,3052.7,3051.4,0.4631]
[1763468121188,0.03104148,3052.6,3051.4,0.4631]
[1763468121398,1.348,3052.7,3051.4,0.4631]
[1763468122094,1.348,3052.6,3051.4,0.4631]
[1763468122286,0.03104148,3052.5,3051.4,0.4631]
[1763468124025,1.5616,3052.6,3051.4,0.4631]
[1763468124411,0.43654548,3052.5,3051.4,0.4631]
[1763468124593,0.619104,3052.5,3051.4,0.4631]
[1763468124792,0.618304,3052.5,3051.4,0.4631]
[1763468126004,1.348,3052.4,3051.4,0.4631]
[1763468127842,1.348,3052.3,3051.4,0.4631]
[1763468129136,0.03104148,3052.2,3051.4,0.4631]
[1763468129336,1.348,3052.2,3051.4,0.4631]
[1763468130825,0.002,3052.8,3051.4,0.4631]
[1763468131225,1.348,3052.7,3051.4,0.4631]
[1763468131451,0.24464148,3052.6,3051.4,0.4631]
[1763468132659,0.002,3052.8,3051.4,0.4631]
[1763468132842,0.283,3052.5,3051.4,0.4631]
[1763468133165,0.03104148,3052.4,3051.4,0.4631]
[1763468133825,0.283,3052.5,3051.4,0.4631]
[1763468134024,0.4966,3052.5,3051.4,0.4631]
[1763468134230,0.2136,3052.4,3051.4,0.4631]
[1763468135139,0.51615943,3052.4,3051.4,0.4631]
[1763468135652,0.33360091,3052.3,3051.4,0.4631]
[1763468135853,0.30255943,3052.3,3051.4,0.4631]
[1763468136019,1.347,3052.2,3051.4,0.4631]
[1763468136217,0.282,3052.1,3051.4,0.4631]
[1763468136619,0.282,3052.1,3052.0,0.4952]
[1763468137023,1.347,3052.1,3052.0,0.4952]
[1763468137419,1.347,3052.1,3052.0,0.9819]
[1763468137665,0.407504,3052.8,3052.0,0.9819]
[1763468137871,1.347,3052.7,3052.1,0.1922]
[1763468138072,0.002,3052.8,3052.1,0.1922]
[1763468138253,1.36863185,3052.7,3052.1,0.6789]
[1763468138554,0.282,3052.6,3052.1,0.6789]
[1763468139056,0.282,3052.6,3052.2,0.4867]
[1763468139686,0.002,3052.8,3052.5,0.4952]
[1763468139956,1.347,3052.7,3052.5,0.4867]
[1763468140667,1.347,3052.7,3052.6,0.4952]
[1763468141019,1.347,3052.7,3052.6,0.9819]
[1763468141242,0.002,3052.8,3052.6,0.9819]
[1763468141565,0.002,3052.8,3052.7,0.4952]
[1763468141766,1.348,3052.8,3052.7,0.9819]
[1763468141934,0.002,3052.8,3052.7,0.9819]
[1763468142328,1.348,3052.8,3052.7,0.9819]
[1763468143545,1.348,3052.8,3052.1,0.6789]
[1763468143746,1.5616,3052.8,3052.1,0.6789]
[1763468144264,0.002,3052.8,3052.7,0.4952]
[1763468144428,1.348,3052.8,3052.7,0.4952]
[1763468144744,1.348,3052.8,3052.7,0.9819]
[1763468147627,1.5616,3052.8,3052.2,4.3867]
[1763468147849,1.348,3052.8,3052.2,4.3867]
[1763468148127,1.3472,3052.8,3052.3,0.4867]
[1763468150052,0.0012,3052.8,3052.3,0.4867]
[1763468150263,1.346,3052.7,3052.3,0.4867]
[1763468151145,0.03104148,3052.6,3052.1,0.1922]
[1763468151340,0.03104148,3052.6,3051.9,0.4867]
[1763468151341,0.03104148,3052.6,3051.9,0.6789]
[1763468151544,1.346,3052.7,3051.9,0.6789]
[1763468152663,0.0012,3052.8,3051.9,0.1922]
[1763468152864,1.346,3052.7,3052.0,0.4867]
[1763468154861,0.406704,3052.8,3052.0,0.4867]
[1763468154862,0.0012,3052.8,3052.0,0.4867]
[1763468155072,1.346,3052.7,3052.6,0.4952]